fUST/lending_fUST_20260226
["ID","MTS","AMOUNT","RATE_DAILY","PERIOD"]
[406696925,1772094579216,-1004.0844134,0.00014247,2]
[406696926,1772094579282,-1000.0,0.00014247,2]
[406696927,1772094579346,-456.06073594,0.00014247,2]
[406696928,1772094579406,-1000.0,0.00014247,2]
[406696929,1772094579471,-753.62958709,0.00014247,2]
[406696930,1772094579536,-123.04240262,0.00014247,2]
[406696962,1772094631787,-151.0,0.00013264,2]
[406696964,1772094631797,-151.0,0.00013264,2]
[406696966,1772094631806,-500.0,0.00013273,2]
[406696968,1772094631816,-401.18940359,0.00013273,2]
[406696969,1772094631826,-551.21123747,0.00013273,2]
[406696971,1772094631836,-500.0,0.00013273,2]
[406696973,1772094631845,-500.0,0.00013273,2]
[406696975,1772094631855,-1200.0,0.00013532,2]
[406696977,1772094631865,-600.0,0.00013533,2]
[406696979,1772094631875,-612.0,0.00013533,2]
[406696981,1772094631885,-300.0,0.00013673,2]
[406696983,1772094631895,-500.0,0.00013699,2]
[406696985,1772094631905,-253.43670557,0.00013699,2]
[406697145,1772094638007,-246.56329443,0.00013699,2]
[406697146,1772094638017,-445.23989536,0.00013699,2]
[406697147,1772094638027,-500.0,0.00013699,2]
[406697148,1772094638037,-500.0,0.00013699,2]
[406697149,1772094638046,-500.0,0.00013699,2]
[406697150,1772094638056,-500.0,0.00013699,2]
[406697151,1772094638065,-500.0,0.00013699,2]
[406697152,1772094638075,-398.06256977,0.00013699,2]
[406697153,1772094638084,-500.0,0.00013699,2]
[406697154,1772094638094,-1000.0,0.00013821,2]
[406697155,1772094638103,-1000.0,0.00013821,2]
[406697156,1772094638113,-490.8618976,0.00013821,2]
[406697157,1772094638122,-600.0,0.00014221,2]
[406697158,1772094638330,-1000.0,0.00014247,2]
[406697159,1772094638341,-1000.0,0.00014247,2]
[406697160,1772094638350,-1000.0,0.00014247,2]
[406697161,1772094638360,-1000.0,0.00014247,2]
[406697162,1772094638370,-1000.0,0.00014247,2]
[406697163,1772094638381,-1000.0,0.00014247,2]
[406697164,1772094638390,-1057.02644572,0.00014247,2]
[406697165,1772094638401,-503.62368851,0.00014247,2]
[406697166,1772094638410,-1000.0,0.00014247,2]
[406697167,1772094638420,-1025.20979269,0.00014247,2]
[406697168,1772094638430,-1000.0,0.00014247,2]
[406697169,1772094638440,-1000.0,0.00014247,2]
[406697170,1772094638450,-1089.39706985,0.00014247,2]
[406697171,1772094638460,-204.99884286,0.00014368,2]
[406697172,1772094638470,-1587.96944709,0.00014368,2]
[406697173,1772094638479,-1500.0,0.00014368,2]
[406697174,1772094638489,-1500.0,0.00014368,2]
[406697175,1772094638499,-1500.0,0.00014368,2]
[406697176,1772094638508,-1009.25691587,0.00014368,2]
[406697177,1772094638518,-1500.0,0.00014368,2]
[406697178,1772094638527,-1500.0,0.00014368,2]
[406697179,1772094638536,-1500.0,0.00014368,2]
[406697180,1772094638546,-1500.0,0.00014368,2]
[406697181,1772094638556,-1478.5487444,0.00014368,2]
[406697182,1772094638565,-1002.31565215,0.00014368,2]
[406697183,1772094638574,-1500.0,0.00014368,2]
[406697184,1772094638585,-434.76310033,0.00014369,2]
[406697185,1772094638605,-300.0,0.0001453,2]
[406697186,1772094638614,-300.0,0.0001453,2]
[406697187,1772094638623,-300.0,0.0001453,2]
[406697188,1772094638633,-300.0,0.0001453,2]
[406697189,1772094638642,-300.0,0.0001453,2]
[406697190,1772094638651,-398.78947255,0.00014539,2]
[406697191,1772094638661,-900.0,0.00014768,2]
[406697192,1772094638672,-500.0,0.00014794,2]
[406697193,1772094638682,-500.0,0.00014794,2]
[406697194,1772094638691,-450.67,0.00014794,2]
[406697195,1772094638701,-883.75806494,0.00014795,2]
[406697196,1772094638710,-441.00578337,0.00014795,2]
[406697197,1772094638720,-501.20848024,0.00014795,2]
[406697198,1772094638730,-166.0792757,0.00014795,2]
[406697199,1772094638739,-1500.0,0.00014795,2]
[406697200,1772094638752,-1500.0,0.00014795,2]
[406697201,1772094638774,-528.82539604,0.00014795,2]
[406697202,1772094638789,-1500.0,0.00014795,2]
[406697203,1772094638801,-1094.63159316,0.00014795,2]
[406697204,1772094638810,-1500.0,0.00014795,2]
[406697205,1772094638820,-495.05920296,0.00014795,2]
[406697206,1772094638830,-1500.0,0.00014795,2]
[406697207,1772094638840,-1007.16226206,0.00014795,2]
[406697208,1772094638849,-1500.0,0.00014795,2]
[406697209,1772094638859,-304.71025496,0.00014795,2]
[406697210,1772094638868,-1500.0,0.00014795,2]
[406697211,1772094638878,-1500.0,0.00014795,2]
[406697212,1772094638887,-1500.0,0.00014795,2]
[406697213,1772094638896,-1500.0,0.00014795,2]
[406697214,1772094638905,-1500.0,0.00014795,2]
[406697215,1772094638914,-150.0,0.000148,2]
[406697216,1772094638923,-1762.962718,0.00014825,2]
[406697217,1772094638932,-1680.0,0.00014885,2]
[406697218,1772094638942,-720.0,0.00014886,2]
[406697219,1772094638952,-2000.0,0.00014916,2]
[406697220,1772094638961,-2000.0,0.00014916,2]
[406697221,1772094638970,-1428.37081504,0.00014916,2]
[406697222,1772094638979,-1767.55442511,0.00014916,2]
[406697223,1772094638988,-1963.15738854,0.00014916,2]
[406697224,1772094638998,-822.26076066,0.00014916,2]
[406697225,1772094639007,-2000.0,0.00014916,2]
[406697226,1772094639016,-2000.0,0.00014916,2]
[406697227,1772094639025,-3139.10300728,0.00015013,2]
[406697228,1772094639035,-2871.74927534,0.0001506,2]
[406697229,1772094639045,-174.730531,0.00015068,2]
[406697230,1772094639054,-150.0,0.000153,2]
[406697231,1772094639064,-1200.0,0.00015316,2]
[406697232,1772094639073,-154.77606012,0.00015342,2]
[406697233,1772094639084,-527.00053079,0.00015342,2]
[406697234,1772094639094,-2000.0,0.00015342,2]
[406697235,1772094639103,-1787.82687439,0.00015342,2]
[406697236,1772094639112,-593.86676954,0.00015342,2]
[406697237,1772094639121,-2000.0,0.00015342,2]
[406697238,1772094639131,-634.0308573,0.00015342,2]
[406697239,1772094639140,-2000.0,0.00015342,2]
[406697240,1772094639150,-2000.0,0.00015342,2]
[406697241,1772094639159,-351.57963938,0.00015342,2]
[406697242,1772094639168,-2000.0,0.00015342,2]
[406697243,1772094639177,-1762.962718,0.00015449,2]
[406697244,1772094639187,-225.03028291,0.00015464,2]
[406697245,1772094639196,-2500.0,0.00015464,2]
[406697246,1772094639206,-2500.0,0.00015464,2]
[406697247,1772094639215,-2046.00503798,0.00015464,2]
[406697248,1772094639225,-3399.02500776,0.00015851,2]
[406697249,1772094639239,-858.68317857,0.00015864,2]
[406697250,1772094639249,-500.0,0.0001589,2]
[406697251,1772094639259,-500.0,0.0001589,2]
[406697252,1772094639268,-2500.0,0.0001589,2]
[406697253,1772094639279,-354.33241908,0.0001589,2]
[406697254,1772094639288,-2000.0,0.0001589,2]
[406697255,1772094639298,-2500.0,0.0001589,2]
[406697256,1772094639308,-266.21564162,0.0001589,2]
[406697257,1772094639318,-150.0,0.000159,2]
[406697258,1772094639327,-1007.72041675,0.00016012,2]
[406697259,1772094639338,-1962.3638839,0.00016012,2]
[406697260,1772094639347,-1762.962718,0.00016073,2]
[406697261,1772094639357,-311.25824252,0.0001608,2]
[406697262,1772094639367,-2351.0,0.00016374,2]
[406697263,1772094639377,-864.0,0.00016375,2]
[406697264,1772094639386,-150.0,0.000164,2]
[406697266,1772094639396,-5257.9512485,0.00016414,2]
[406697267,1772094639406,-250.26138736,0.00016438,2]
[406697268,1772094639416,-814.57307138,0.00016438,2]
[406697269,1772094639427,-3000.0,0.00016438,2]
[406697270,1772094639436,-5000.0,0.00016538,2]
[406697271,1772094639446,-459.62176498,0.00016539,2]
[406697272,1772094639455,-3658.94700838,0.00016689,2]
[406697273,1772094639465,-1762.962718,0.00016698,2]
[406697274,1772094639474,-500.0,0.00016926,2]
[406697275,1772094639484,-3607.68999142,0.00016986,2]
[406697276,1772094639494,-190.25,0.00017,2]
[406697277,1772094639503,-1762.962718,0.00017322,2]
[406697278,1772094639512,-161.18023076,0.00017485,2]
[406697279,1772094639521,-3885.3436886,0.00017528,2]
[406697280,1772094639531,-150.26283669,0.00017808,2]
[406697281,1772094639541,-500.0,0.00017817,2]
[406697282,1772094639550,-250.0,0.00017882,2]
[406697283,1772094639559,-1762.962718,0.00017946,2]
[406697284,1772094639569,-744.71502317,0.00017955,2]
[406697285,1772094639578,-2956.0,0.00018011,2]
[406697287,1772094639588,-1000.0,0.00018012,2]
[406697288,1772094639597,-180.07,0.00018078,2]
[406697289,1772094639607,-174.730531,0.00018493,2]
[406697290,1772094639616,-520.4540574,0.00018539,2]
[406697291,1772094639625,-500.0,0.00018581,2]
[406697292,1772094639635,-500.0,0.00018581,2]
[406697293,1772094639644,-1173.2075041,0.00018593,2]
[406697294,1772094639655,-500.0,0.00018708,2]
[406697295,1772094639665,-162.0,0.0001872,2]
[406697296,1772094639675,-15500.0,0.00019,2]
[406697297,1772094639684,-5000.0,0.00019,2]
[406697298,1772094639694,-5000.0,0.00019,2]
[406697299,1772094639704,-5000.0,0.00019,2]
[406697300,1772094639713,-5000.0,0.00019,2]
[406697301,1772094639722,-5000.0,0.00019,2]
[406697302,1772094639732,-261.7779782,0.00019079,2]
[406697303,1772094639741,-1416.0109981,0.00019311,2]
[406697304,1772094639751,-250.0,0.00019429,2]
[406697305,1772094639760,-250.0,0.00019429,2]
[406697306,1772094639770,-250.0,0.00019429,2]
[406697307,1772094639780,-250.0,0.00019429,2]
[406697308,1772094639790,-500.0,0.00019643,2]
[406697309,1772094639800,-162.0,0.00019651,2]
[406697310,1772094639809,-401.0,0.00019688,2]
[406697311,1772094639818,-161.0,0.000198,3]
[406697312,1772094639828,-1000.0,0.00019814,2]
[406697313,1772094639838,-244.0,0.00019814,2]
[406697314,1772094639847,-487.0,0.00019978,2]
[406697315,1772094639858,-487.0,0.00019978,2]
[406697316,1772094639867,-487.0,0.00019978,2]
[406697317,1772094639877,-487.0,0.00019978,2]
[406697318,1772094639887,-487.0,0.00019978,2]
[406697319,1772094639896,-487.0,0.00019978,2]
[406697320,1772094639907,-487.0,0.00019978,2]
[406697321,1772094639916,-487.0,0.00019978,2]
[406697322,1772094639926,-487.0,0.00019978,2]
[406697323,1772094639935,-487.0,0.00019978,2]
[406697324,1772094639944,-487.0,0.00019978,2]
[406697325,1772094639954,-487.0,0.00019978,2]
[406697326,1772094639963,-487.0,0.00019978,2]
[406697327,1772094639972,-487.0,0.00019978,2]
[406697328,1772094639982,-487.0,0.00019978,2]
[406697329,1772094639992,-606.12,0.00019978,2]
[406697330,1772094640001,-160.0,0.0002,4]
[406697331,1772094640011,-363.720221,0.0002,10]
[406697332,1772094640020,-403.0,0.00020132,2]
[406697333,1772094640029,-200.0,0.00020221,5]
[406697334,1772094640038,-151.0,0.0002027,2]
[406697335,1772094640048,-151.0,0.0002027,2]
[406697336,1772094640057,-151.0,0.0002027,2]
[406697337,1772094640067,-151.0,0.0002027,2]
[406697338,1772094640076,-151.0,0.0002027,2]
[406697339,1772094640085,-151.0,0.0002027,2]
[406697340,1772094640095,-151.0,0.0002027,2]
[406697341,1772094640104,-2579.17784983,0.0002027,2]
[406697342,1772094640113,-500.0,0.0002027,2]
[406697343,1772094640123,-151.0,0.0002027,2]
[406697344,1772094640132,-500.0,0.0002027,2]
[406697345,1772094640142,-151.0,0.0002027,2]
[406697346,1772094640152,-500.0,0.0002027,2]
[406697347,1772094640162,-151.0,0.0002027,2]
[406697348,1772094640171,-500.0,0.0002027,2]
[406697349,1772094640181,-154.04416148,0.0002027,2]
[406697351,1772094640191,-500.0,0.0002027,2]
[406697353,1772094640200,-500.0,0.0002027,2]
[406697355,1772094640210,-250.0,0.0002027,2]
[406697357,1772094640219,-500.0,0.0002027,2]
[406697359,1772094640229,-500.0,0.0002027,2]
[406697361,1772094640240,-250.0,0.0002027,2]
[406697363,1772094640249,-500.0,0.0002027,2]
[406697365,1772094640259,-194.72792766,0.0002027,2]
[406697367,1772094640269,-500.0,0.0002027,2]
[406697369,1772094640279,-250.0,0.0002027,2]
[406697371,1772094640288,-500.0,0.0002027,2]
[406697373,1772094640298,-201.93286099,0.0002027,2]
[406697375,1772094640309,-500.0,0.0002027,2]
[406697377,1772094640318,-331.70512794,0.0002027,2]
[406697379,1772094640327,-500.0,0.0002027,2]
[406697381,1772094640338,-209.40437684,0.0002027,2]
[406697383,1772094640348,-500.0,0.0002027,2]
[406697385,1772094640357,-500.0,0.0002027,2]
[406697387,1772094640367,-217.15233878,0.0002027,2]
[406697389,1772094640376,-500.0,0.0002027,2]
[406697391,1772094640386,-500.0,0.0002027,2]
[406697393,1772094640395,-225.18697532,0.0002027,2]
[406697395,1772094640404,-500.0,0.0002027,2]
[406697397,1772094640414,-500.0,0.0002027,2]
[406697399,1772094640424,-233.51889341,0.0002027,2]
[406697401,1772094640433,-500.0,0.0002027,2]
[406697403,1772094640442,-500.0,0.0002027,2]
[406697405,1772094640451,-242.15909246,0.0002027,2]
[406697407,1772094640460,-500.0,0.0002027,2]
[406697409,1772094640470,-251.11897888,0.0002027,2]
[406697411,1772094640479,-500.0,0.0002027,2]
[406697413,1772094640489,-260.4103811,0.0002027,2]
[406697415,1772094640498,-500.0,0.0002027,2]
[406697417,1772094640507,-250.0,0.0002027,2]
[406697419,1772094640517,-270.0455652,0.0002027,2]
[406697421,1772094640526,-500.0,0.0002027,2]
[406697423,1772094640535,-250.0,0.0002027,2]
[406697425,1772094640545,-500.0,0.0002027,2]
[406697427,1772094640555,-250.0,0.0002027,2]
[406697429,1772094640565,-367.41720469,0.0002027,2]
[406697431,1772094640574,-280.03725112,0.0002027,2]
[406697433,1772094640588,-290.39862941,0.0002027,2]
[406697434,1772094640597,-301.1433787,0.0002027,2]
[406697435,1772094640606,-250.0,0.0002027,2]
[406697436,1772094640615,-250.0,0.0002027,2]
[406697437,1772094640624,-250.0,0.0002027,2]
[406697438,1772094640633,-250.0,0.0002027,2]
[406697439,1772094640643,-250.0,0.0002027,2]
[406697440,1772094640652,-250.0,0.0002027,2]
[406697441,1772094640661,-256.85648935,0.0002027,2]
[406697442,1772094640671,-1386.0,0.0002027,2]
[406697443,1772094640680,-637.0,0.0002027,2]
[406697444,1772094640689,-312.84,0.0002027,2]
[406697445,1772094640698,-544.16,0.0002027,2]
[406697446,1772094640707,-728.0,0.0002027,2]
[406697447,1772094640716,-2791.43035406,0.00020319,2]
[406697448,1772094640725,-891.743,0.00020428,2]
[406697450,1772094640736,-581.28634982,0.00020539,2]
[406697452,1772094640745,-500.0,0.00020625,2]
[406697454,1772094640755,-2460.16945588,0.00020818,2]
[406697456,1772094640764,-449.08644822,0.00020902,2]
[406697458,1772094640773,-500.0,0.00020902,2]
[406697475,1772094640935,-715.0,0.00020968,2]
[406697477,1772094640947,-501.64,0.00021,2]
[406697479,1772094640957,-160.0,0.00021,5]
[406697481,1772094640967,-4000.0,0.00021,2]
[406697483,1772094640976,-4647.98347003,0.00021,2]
[406697485,1772094640985,-183.87466812,0.0002102,2]
[406697487,1772094640995,-210.47334633,0.0002103,2]
[406697489,1772094641004,-240.54096723,0.0002103,2]
[406697491,1772094641014,-375.46941604,0.0002103,2]
[406697493,1772094641023,-191.52739142,0.0002103,2]
[406697495,1772094641033,-344.74930455,0.0002103,2]
[406697498,1772094641044,-612.88765254,0.0002103,2]
[406697500,1772094641054,-158.95746701,0.00021131,5]
[406697502,1772094641063,-3505.78101001,0.00021326,2]
[406697504,1772094641073,-452.043566,0.00021394,7]
[406697505,1772094641082,-700.0,0.00021471,2]
[406697508,1772094641091,-1000.0,0.00021795,10]
[406697509,1772094641101,-492.0,0.00021795,10]
[406697511,1772094641111,-161.18023076,0.00021856,2]
[406697513,1772094641120,-331.6981466,0.00021881,2]
[406697516,1772094641129,-4396.93038053,0.000219,2]
[406697517,1772094641138,-4396.9303805,0.000219,2]
[406697519,1772094641148,-4396.9303805,0.000219,2]
[406697521,1772094641157,-4396.9303805,0.000219,2]
[406697524,1772094641166,-700.0,0.00021904,2]
[406697526,1772094641176,-2000.0,0.00021917,2]
[406697528,1772094641186,-174.730531,0.00021918,2]
[406697530,1772094641195,-150.0,0.00021918,2]
[406697532,1772094641204,-715.0,0.00021956,2]
[406697534,1772094641214,-2577.999119,0.00022015,30]
[406697536,1772094641223,-500.0,0.00022282,2]
[406697538,1772094641233,-4166.84971003,0.00022333,2]
[406697540,1772094641245,-300.0,0.00022466,2]
[406697542,1772094641254,-642.11864225,0.00022539,2]
[406697544,1772094641263,-500.0,0.00022633,2]
[406697546,1772094641275,-3608.0,0.00022849,10]
[406697548,1772094641284,-700.0,0.00022878,2]
[406697550,1772094641294,-715.0,0.00022894,3]
[406697552,1772094641303,-100000.0,0.0002299,2]
[406697554,1772094641312,-450.0,0.00023014,2]
[406697556,1772094641322,-500.0,0.00023047,2]
[406697557,1772094641331,-5313.6669329,0.00023048,2]
[406697560,1772094641340,-3232.1630625,0.00023048,2]
[406697561,1772094641349,-151.0,0.00023048,2]
[406697564,1772094641359,-8722.278523,0.00023048,2]
[406697566,1772094641368,-8722.278523,0.00023048,2]
[406697567,1772094641379,-8722.278523,0.00023048,2]
[406697569,1772094641388,-8722.278523,0.00023048,2]
[406697571,1772094641397,-178.834166,0.00023048,2]
[406697573,1772094641406,-178.834166,0.00023048,2]
[406697575,1772094641416,-178.834166,0.00023048,2]
[406697578,1772094641426,-178.834166,0.00023048,2]
[406697580,1772094641436,-476.91500213,0.00023103,2]
[406697582,1772094641445,-160.24000886,0.00023152,5]
[406697584,1772094641455,-500.0,0.00023207,2]
[406697585,1772094641464,-1386.0,0.0002327,2]
[406697587,1772094641474,-637.0,0.0002327,2]
[406697589,1772094641484,-430.0,0.0002327,2]
[406697591,1772094641494,-728.0,0.0002327,2]
[406697593,1772094641503,-4201.79484894,0.00023341,2]
[406697595,1772094641513,-500.0,0.00023506,2]
[406697597,1772094641523,-600.0,0.00023562,2]
[406697599,1772094641532,-500.0,0.00023573,2]
[406697602,1772094641542,-13517.86155635,0.00023574,2]
[406697603,1772094641552,-2147.10916082,0.0002363,14]
[406697606,1772094641561,-547.7280467,0.00023688,65]
[406697608,1772094641571,-689.08511609,0.00023688,65]
[406697609,1772094641580,-500.0,0.00023718,2]
[406697611,1772094641589,-500.0,0.00023721,2]
[406697613,1772094641599,-3027.49368103,0.00023722,63]
[406697616,1772094641608,-38000.0,0.00023755,7]
[406697617,1772094641618,-38000.0,0.00023764,7]
[406697620,1772094641627,-6406.45999071,0.00023765,65]
[406697622,1772094641636,-38000.0,0.00023772,7]
[406697624,1772094641646,-287.0,0.00023777,30]
[406697626,1772094641655,-38000.0,0.00023781,7]
[406697628,1772094641664,-700.0,0.00023785,2]
[406697630,1772094641674,-8722.278523,0.0002379,2]
[406697631,1772094641684,-8722.278523,0.0002379,2]
[406697633,1772094641693,-8722.278523,0.0002379,2]
[406697635,1772094641703,-8722.278523,0.0002379,2]
[406697637,1772094641712,-178.834166,0.0002379,2]
[406697640,1772094641722,-178.834166,0.0002379,2]
[406697642,1772094641731,-178.834166,0.0002379,2]
[406697643,1772094641740,-178.834166,0.0002379,2]
[406697645,1772094641750,-38000.0,0.0002379,7]
[406697648,1772094641759,-38000.0,0.00023799,7]
[406697650,1772094641768,-38000.0,0.00023808,7]
[406697652,1772094641777,-266.92094962,0.00023809,7]
[406697653,1772094641787,-4709.12826671,0.00023826,59]
[406697655,1772094641796,-500.0,0.00023857,2]
[406697657,1772094641806,-500.0,0.00023857,2]
[406697660,1772094641815,-38000.0,0.00023857,7]
[406697662,1772094641824,-151.0,0.00023858,2]
[406697664,1772094641834,-700.0,0.00023859,2]
[406697666,1772094641843,-500.0,0.00023866,2]
[406697668,1772094641853,-500.0,0.00023866,2]
[406697670,1772094641862,-500.0,0.00023866,2]
[406697671,1772094641871,-500.0,0.00023866,2]
[406697674,1772094641881,-38000.0,0.00023866,7]
[406697676,1772094641891,-360.72278916,0.00023874,2]
[406697678,1772094641900,-38000.0,0.00023875,7]
[406697680,1772094641909,-151.0,0.00023875,2]
[406697682,1772094641919,-8722.278523,0.00023875,2]
[406697684,1772094641929,-8722.278523,0.00023875,2]
[406697686,1772094641938,-8722.278523,0.00023875,2]
[406697688,1772094641947,-8722.278523,0.00023875,2]
[406697690,1772094641957,-178.834166,0.00023875,2]
[406697692,1772094641966,-178.834166,0.00023875,2]
[406697694,1772094641975,-178.834166,0.00023875,2]
[406697696,1772094641985,-178.834166,0.00023875,2]
[406697698,1772094641994,-38000.0,0.00023884,7]
[406697700,1772094642003,-151.0,0.00023884,2]
[406697701,1772094642019,-151.0,0.00023884,2]
[406697704,1772094642029,-242.0,0.00023884,2]
[406697706,1772094642038,-700.0,0.00023891,2]
[406697708,1772094642047,-38000.0,0.00023893,7]
[406697710,1772094642057,-128152.25,0.000239,2]
[406697711,1772094642066,-160.388742,0.000239,2]
[406697714,1772094642076,-8722.278523,0.000239,2]
[406697715,1772094642085,-8722.278523,0.000239,2]
[406697717,1772094642095,-8722.278523,0.000239,2]
[406697719,1772094642105,-8722.278523,0.000239,2]
[406697721,1772094642114,-178.834166,0.000239,2]
[406697723,1772094642123,-178.834166,0.000239,2]
[406697725,1772094642133,-178.834166,0.000239,2]
[406697728,1772094642143,-178.834166,0.000239,2]
[406697730,1772094642153,-151.0,0.00023901,2]
[406697732,1772094642163,-38000.0,0.00023901,7]
[406697734,1772094642172,-151.0,0.0002391,2]
[406697736,1772094642181,-151.0,0.0002391,2]
[406697738,1772094642191,-38000.0,0.0002391,7]
[406697740,1772094642200,-20150.13029103,0.00023919,7]
[406697742,1772094642210,-38000.0,0.00023919,7]
[406697744,1772094642219,-1000.0,0.00023974,10]
[406697746,1772094642229,-791.0,0.00023974,10]
[406697748,1772094642241,-22984.62477189,0.00024,2]
[406697750,1772094642257,-2745.99460462,0.00024,2]
[406697753,1772094642268,-11705.89482807,0.00024,2]
[406697755,1772094642280,-458.53897506,0.00024,2]
[406697881,1772094648140,-2564.75663223,0.00024,2]
[406697882,1772094648243,-229.77718796,0.00024,2]
[406697883,1772094650004,-28.53310124,0.000137,2]
[406697884,1772094650016,-172.60689876,0.000137,2]
[406697885,1772094650026,-600.0,0.0001453,2]
[406697886,1772094650036,-720.0,0.00015984,2]
[406697887,1772094650046,-864.0,0.00017582,2]
[406697888,1772094650057,-1000.0,0.0001934,2]
[406697889,1772094650066,-250.0,0.0002027,2]
[406697890,1772094650076,-1000.0,0.00021274,10]
[406697891,1772094650087,-244.0,0.00021274,10]
[406697892,1772094650096,-1000.0,0.00023401,10]
[406697893,1772094650107,-6145.64856398,0.00023645,2]
[406697894,1772094650116,-68724.68948962,0.00024,2]
[406697895,1772094650126,-1747.29500995,0.00024,2]
[406697896,1772094650137,-2156.97053333,0.00024,120]
[406697897,1772094650147,-468.6837289,0.00024,2]
[406697898,1772094650158,-107179.42256252,0.00024,2]
[406697899,1772094650168,-55142.96042072,0.00024,2]
[406697900,1772094651597,-250.0,0.0002027,2]
[406697901,1772094651607,-250.0,0.0002027,2]
[406697902,1772094651617,-250.0,0.0002027,2]
[406697903,1772094651626,-250.0,0.0002027,2]
[406697904,1772094651636,-492.0,0.00023401,10]
[406697905,1772094651645,-8238.71242522,0.00024,2]
[406697906,1772094765695,244.16577029,0.00012001,2]
[406697908,1772094867118,5000.0,0.00012001,2]
[406697909,1772094889813,1006.42377235,0.00012001,2]
[406697910,1772095080543,163.76,9.99e-05,2]
[406697911,1772095080829,163.76,9.99e-05,2]
[406697912,1772095081143,163.76,9.99e-05,2]
[406697913,1772095626300,-218.59,0.000122,2]
[406697914,1772095626321,-297.52670526,0.00012207,2]
[406697915,1772095626340,-208.82972127,0.00012229,2]
[406697916,1772095626360,-18.52192423,0.0001231,2]
[406697917,1772095636077,-144.76789517,0.0001231,2]
[406697918,1772095636096,-384.14392705,0.00012339,2]
[406697919,1772095643089,-115.85607295,0.00012339,2]
[406697920,1772095643110,-300.0,0.00012514,2]
[406697921,1772095643130,-37.61984945,0.0001284,2]
[406697922,1772095753088,-244.21125055,0.0001284,2]
[406697923,1772095753111,-291.57617115,0.00013048,2]
[406697924,1772095753132,-200.0,0.00013256,2]
[406697925,1772095753156,-300.0,0.00013271,2]
[406697926,1772095753178,-300.0,0.00013272,2]
[406697927,1772095753201,-300.0,0.00013272,2]
[406697928,1772095753224,-300.0,0.00013272,2]
[406697929,1772095753246,-866.48701357,0.00013272,2]
[406697930,1772095759207,-333.51298643,0.00013272,2]
[406697931,1772095759228,-262.34730712,0.00013273,2]
[406697932,1772095759249,-500.0,0.00013273,2]
[406697933,1772095759269,-500.0,0.00013273,2]
[406697934,1772095759290,-282.1851143,0.00013335,2]
[406697935,1772095759310,-6925.19834545,0.00013599,2]
[406697936,1772095759330,-337.35098674,0.00013637,2]
[406697937,1772095759350,-300.0,0.00013673,2]
[406697938,1772095759371,-151.0,0.0001369,2]
[406697939,1772095759391,-151.0,0.0001369,2]
[406697940,1772095759411,-262.89132858,0.0001369,2]
[406697941,1772095759434,-500.0,0.00013696,2]
[406697942,1772095759456,-500.0,0.00013696,2]
[406697943,1772095759707,-500.0,0.00013696,2]
[406697944,1772095759729,-231.70652763,0.00013696,2]
[406697945,1772095759752,-500.0,0.00013696,2]
[406697946,1772095759776,-435.78669983,0.00013696,2]
[406697947,1772095759798,-500.0,0.00013696,2]
[406697948,1772095759818,-500.0,0.00013696,2]
[406697949,1772095759839,-500.0,0.00013696,2]
[406697950,1772095759862,-500.0,0.00013696,2]
[406697951,1772095759884,-500.0,0.00013696,2]
[406697952,1772095759906,-500.0,0.00013696,2]
[406697953,1772095759927,-500.0,0.00013696,2]
[406697954,1772095759949,-513.03245588,0.00013696,2]
[406697955,1772095759972,-500.0,0.00013696,2]
[406697956,1772095759995,-500.0,0.00013696,2]
[406697957,1772095760016,-500.0,0.00013696,2]